[Event "European Womens-ch 2025"]
[Site "Rhodes"]
[Date "2025.04.07"]
[Round "7.67"]
[White "Saraci, Ndriqona"]
[Black "Lamprianou, Marianna"]
[Result "1/2-1/2"]
[Annotator "NA COMBH"]
[ECO "C54"]
[WhiteElo "1692"]
[BlackElo "1498"]
[PlyCount "134"]
[EventDate "2025.03.29"]
[EventType "swiss"]
[EventCountry "GRE"]
[SourceTitle "playchess.com"]
[Source "ChessBase"]
[SourceQuality "1"]
[TimeControl "40/5400+30:1800+30"]

1. e4 {[%emt 0:00:03]} e5 {[%emt 0:00:07]} 2. Nf3 {[%emt 0:00:10]} Nc6 {[%emt 0:00:07]} 3. Bc4 {[%emt 0:00:21]} Bc5 {[%emt 0:00:31]} 4. c3 {[%emt 0:00:31]} Nf6 {[%emt 0:01:16]} 5. d3 {[%emt 0:00:29]} h6 {[%emt 0:01:27]} 6. b4 {[%emt 0:02:03]} Bd6 {[%emt 0:06:12]} 7. O-O {[%emt 0:02:51]} O-O {[%emt 0:02:04]} 8. a4 {[%emt 0:01:40]} a6 {[%emt 0:08:14]} 9. Re1 {[%emt 0:01:37]} Re8 {[%emt 0:01:22]} 10. Nbd2 {[%emt 0:02:38]} Bf8 {[%emt 0:07:49]} 11. Qb3 {[%emt 0:03:08]} Re7 {[%emt 0:09:31]} 12. d4 {[%emt 0:05:46]} exd4 {[%emt 0:05:32]} 13. cxd4 {[%emt 0:00:26]} d5 {[%emt 0:06:40]} 14. exd5 {[%emt 0:07:56]} Rxe1+ {[%emt 0:01:03]} 15. Nxe1 {[%emt 0:00:12]} Nxd4 {[%emt 0:05:50]} 16. Qc3 {[%emt 0:02:54]} Nf5 {[%emt 0:11:59]} 17. Rb1 {[%emt 0:09:51]} Nxd5 {[%emt 0:03:29]} 18. Bxd5 {[%emt 0:01:40]} Qxd5 {[%emt 0:00:32]} 19. Qxc7 {[%emt 0:01:29]} Nd4 {[%emt 0:08:45]} 20. Qc4 {[%emt 0:03:04]} Qxc4 {[%emt 0:03:03]} 21. Nxc4 {[%emt 0:00:07]} Ne2+ {[%emt 0:00:18]} 22. Kf1 {[%emt 0:00:43]} Nxc1 {[%emt 0:00:25]} 23. Rxc1 {[%emt 0:00:10]} Be6 {[%emt 0:04:22]} 24. Nb6 {[%emt 0:02:10]} Rd8 {[%emt 0:01:53]} 25. b5 {[%emt 0:01:54]} axb5 {[%emt 0:02:28]} 26. axb5 {[%emt 0:00:04]} Rd6 {[%emt 0:01:20]} 27. Na4 {[%emt 0:04:34]} Rd4 {[%emt 0:00:56]} 28. Nb2 {[%emt 0:07:39]} Rb4 {[%emt 0:01:36]} 29. Ned3 {[%emt 0:00:06]} Rxb5 {[%emt 0:01:27]} 30. Ke2 {[%emt 0:00:07]} Bd6 {[%emt 0:00:38]} 31. h3 {[%emt 0:00:35]} Ba3 {[%emt 0:00:44]} 32. Rc2 {[%emt 0:01:43]} Bf5 {[%emt 0:01:14]} 33. Nd1 {[%emt 0:01:09]} Rd5 {[%emt 0:00:36]} 34. Rc3 {[%emt 0:00:43]} Bxd3+ {[%emt 0:00:44]} 35. Rxd3 {[%emt 0:00:10]} Rxd3 {[%emt 0:00:17]} 36. Kxd3 {[%emt 0:00:02]} g5 {[%emt 0:00:18]} 37. Kc4 {[%emt 0:01:19]} b6 {[%emt 0:00:41]} 38. Nc3 {[%emt 0:01:08]} Kg7 {[%emt 0:00:59]} 39. Kd5 {[%emt 0:03:31]} Bb4 {[%emt 0:01:24]} 40. Ne4 {[%emt 0:00:00]} f5 {[%emt 0:00:00]} 41. Ng3 {[%emt 0:03:41]} Kg6 {[%emt 0:02:32]} 42. Ke5 {[%emt 0:04:31]} Bc3+ {[%emt 0:02:44]} 43. Kd5 {[%emt 0:00:39]} b5 {[%emt 0:02:21]} 44. Kc5 {[%emt 0:00:30]} b4 {[%emt 0:00:44]} 45. Kc4 {[%emt 0:00:09]} Be1 {[%emt 0:02:16]} 46. Ne2 {[%emt 0:00:22]} Bxf2 {[%emt 0:00:47]} 47. Kxb4 {[%emt 0:00:14]} Kh5 {[%emt 0:02:08]} 48. Kc4 {[%emt 0:00:25]} g4 {[%emt 0:02:42]} 49. hxg4+ {[%emt 0:01:45]} Kxg4 {[%emt 0:01:50]} 50. Kd3 {[%emt 0:00:40]} f4 {[%emt 0:02:09]} 51. Ke4 {[%emt 0:01:31]} Bg3 {[%emt 0:00:50]} 52. Ng1 {[%emt 0:01:41]} Bh2 {[%emt 0:01:13]} 53. Nf3 {[%emt 0:02:22]} Bg3 {[%emt 0:02:08]} 54. Ne5+ {[%emt 0:01:00]} Kg5 {[%emt 0:02:06]} 55. Kf3 {[%emt 0:00:47]} Kf5 {[%emt 0:01:23]} 56. Nf7 {[%emt 0:01:49]} h5 {[%emt 0:00:20]} 57. Nd6+ {[%emt 0:00:29]} Kg6 {[%emt 0:01:48]} 58. Ne4 {[%emt 0:00:37]} Bh2 {[%emt 0:01:38]} 59. g3 {[%emt 0:07:48]} fxg3 {[%emt 0:02:01]} 60. Nxg3 {[%emt 0:00:06]} Bxg3 {[%emt 0:00:34]} 61. Kxg3 {[%emt 0:00:12]} Kg5 {[%emt 0:00:32]} 62. Kh3 {[%emt 0:00:18]} h4 {[%emt 0:00:19]} 63. Kg2 {[%emt 0:00:23]} Kg4 {[%emt 0:00:12]} 64. Kh2 {[%emt 0:00:24]} h3 {[%emt 0:00:31]} 65. Kh1 {[%emt 0:01:09]} Kg3 {[%emt 0:00:45]} 66. Kg1 {[%emt 0:00:15]} h2+ {[%emt 0:00:39]} 67. Kh1 {[%emt 0:00:08]} Kh3 {[%emt 0:00:38]} 1/2-1/2